[Event "Betsys MČR v online bleskovém šachu 2021"]
[Site "Chess.com"]
[Date "2021.04.17"]
[Round "7"]
[White "Bohous13"]
[Black "David_Mic"]
[Result "1/2-1/2"]
[WhiteElo "2204"]
[BlackElo "1989"]
[TimeControl "180+1"]
[EndTime "10:12:00 PDT"]
[Termination "Remíza dohodou"]

1. e4 {[%clk 0:03:00.9]} 1... c5 {[%clk 0:02:59.3]} 2. c4 {[%clk 0:03:00.2]}
2... Nc6 {[%clk 0:02:58.9]} 3. Ne2 {[%clk 0:02:59.2]} 3... d6 {[%clk 0:02:58.7]}
4. d4 {[%clk 0:02:59.3]} 4... cxd4 {[%clk 0:02:57.8]} 5. Nxd4 {[%clk 0:02:59.7]}
5... g6 {[%clk 0:02:57.9]} 6. Be3 {[%clk 0:02:59.3]} 6... Bg7 {[%clk 0:02:57.9]}
7. Nc3 {[%clk 0:02:59.5]} 7... Nf6 {[%clk 0:02:57.8]} 8. Be2 {[%clk 0:02:59.7]}
8... O-O {[%clk 0:02:56.4]} 9. O-O {[%clk 0:02:59.9]} 9... Bd7 {[%clk
0:02:55.7]} 10. f4 {[%clk 0:02:59]} 10... Nxd4 {[%clk 0:02:55]} 11. Bxd4 {[%clk
0:02:59.2]} 11... Bc6 {[%clk 0:02:55.6]} 12. Bf3 {[%clk 0:02:59.4]} 12... Rc8
{[%clk 0:02:53.5]} 13. Rc1 {[%clk 0:02:57.5]} 13... a6 {[%clk 0:02:52.4]} 14.
Qd2 {[%clk 0:02:56.1]} 14... Qa5 {[%clk 0:02:50.2]} 15. Rfd1 {[%clk 0:02:49]}
15... Rfe8 {[%clk 0:02:34.1]} 16. Qf2 {[%clk 0:02:45]} 16... Nd7 {[%clk
0:02:17.1]} 17. Bxg7 {[%clk 0:02:40.7]} 17... Kxg7 {[%clk 0:02:16.4]} 18. Bg4
{[%clk 0:02:38]} 18... Rcd8 {[%clk 0:01:58.4]} 19. Bxd7 {[%clk 0:02:36.6]} 19...
Rxd7 {[%clk 0:01:56.1]} 20. a3 {[%clk 0:02:21]} 20... Qc5 {[%clk 0:01:44.5]} 21.
Qxc5 {[%clk 0:02:16.2]} 21... dxc5 {[%clk 0:01:45.4]} 22. Rxd7 {[%clk
0:02:16.3]} 22... Bxd7 {[%clk 0:01:45.9]} 23. Rd1 {[%clk 0:02:12.7]} 23... Be6
{[%clk 0:01:45.6]} 24. b3 {[%clk 0:02:08.9]} 24... b5 {[%clk 0:01:33.5]} 25.
cxb5 {[%clk 0:02:03.8]} 25... axb5 {[%clk 0:01:33.4]} 26. Nxb5 {[%clk
0:02:00.3]} 26... Bxb3 {[%clk 0:01:32.8]} 27. Rd7 {[%clk 0:02:00.6]} 27... Ba4
{[%clk 0:01:27.1]} 28. Rb7 {[%clk 0:01:59.5]} 28... Bxb5 {[%clk 0:01:24.6]} 29.
Rxb5 {[%clk 0:01:59.5]} 29... Ra8 {[%clk 0:01:24.6]} 30. Rxc5 {[%clk 0:01:50.6]}
30... Rxa3 {[%clk 0:01:24]} 31. Rc7 {[%clk 0:01:50.7]} 31... e6 {[%clk
0:01:23.6]} 32. Kf2 {[%clk 0:01:48.7]} 32... Rb3 {[%clk 0:01:22.7]} 33. h4
{[%clk 0:01:47.2]} 33... Ra3 {[%clk 0:01:22.2]} 34. Rb7 {[%clk 0:01:42.6]} 34...
Rc3 {[%clk 0:01:21.6]} 35. Rb5 {[%clk 0:01:33.3]} 35... Ra3 {[%clk 0:01:20.5]}
36. h5 {[%clk 0:01:30]} 36... Rc3 {[%clk 0:01:16.3]} 37. g4 {[%clk 0:01:29.4]}
37... Ra3 {[%clk 0:01:12.3]} 38. Rb1 {[%clk 0:01:08.3]} 38... Rh3 {[%clk
0:01:09.3]} 39. Rb5 {[%clk 0:01:07.3]} 39... gxh5 {[%clk 0:01:01.6]} 40. gxh5
{[%clk 0:01:06.2]} 40... Kh6 {[%clk 0:01:01.7]} 41. Rb7 {[%clk 0:01:05.3]} 41...
f5 {[%clk 0:00:48.8]} 42. Rb6 {[%clk 0:00:52]} 42... fxe4 {[%clk 0:00:45.1]} 43.
Rxe6+ {[%clk 0:00:51.4]} 43... Kxh5 {[%clk 0:00:45.3]} 44. Rxe4 {[%clk
0:00:51.1]} 44... Kg4 {[%clk 0:00:44.6]} 45. Kg2 {[%clk 0:00:39.2]} 45... Ra3
{[%clk 0:00:42.5]} 46. f5+ {[%clk 0:00:22.6]} 46... Kxf5 {[%clk 0:00:40.8]} 47.
Rh4 {[%clk 0:00:22.5]} 47... Kg6 {[%clk 0:00:37.6]} 48. Rc4 {[%clk 0:00:22.4]}
48... h5 {[%clk 0:00:36.1]} 49. Rc5 {[%clk 0:00:22.4]} 49... Kh6 {[%clk
0:00:34.2]} 50. Kh2 {[%clk 0:00:22.7]} 50... Kg6 {[%clk 0:00:34.1]} 51. Kg2
{[%clk 0:00:23.1]} 51... Kh6 {[%clk 0:00:32.2]} 52. Kh2 {[%clk 0:00:23.5]}
1/2-1/2

[Event "Betsys MČR v online bleskovém šachu 2021"]
[Site "Chess.com"]
[Date "2021.04.17"]
[Round "7"]
[White "Jaja15F"]
[Black "JonasFadrny"]
[Result "1-0"]
[WhiteElo "1116"]
[BlackElo "752"]
[TimeControl "180+1"]
[EndTime "10:12:01 PDT"]
[Termination "Uživatel Jaja15F zvítězil matem"]

1. d4 {[%clk 0:02:53.1]} 1... d5 {[%clk 0:02:49.4]} 2. c4 {[%clk 0:02:44.5]}
2... Nc6 {[%clk 0:02:49.8]} 3. e3 {[%clk 0:02:38]} 3... dxc4 {[%clk 0:02:48.7]}
4. Bxc4 {[%clk 0:02:36.4]} 4... Be6 {[%clk 0:02:48.5]} 5. d5 {[%clk 0:02:35.3]}
5... Bxd5 {[%clk 0:02:44.5]} 6. Qxd5 {[%clk 0:02:32.7]} 6... Qxd5 {[%clk
0:02:44.2]} 7. Bxd5 {[%clk 0:02:32.1]} 7... Nf6 {[%clk 0:02:40.8]} 8. Bxc6+
{[%clk 0:02:29.8]} 8... bxc6 {[%clk 0:02:39.2]} 9. Nc3 {[%clk 0:02:28.8]} 9...
e6 {[%clk 0:02:34.9]} 10. Bd2 {[%clk 0:02:27.2]} 10... Bb4 {[%clk 0:02:35.1]}
11. Nf3 {[%clk 0:02:26.4]} 11... Bxc3 {[%clk 0:02:35.5]} 12. Bxc3 {[%clk
0:02:25.8]} 12... O-O {[%clk 0:02:35.9]} 13. Bxf6 {[%clk 0:02:22.6]} 13... gxf6
{[%clk 0:02:35.2]} 14. O-O {[%clk 0:02:22.5]} 14... Rad8 {[%clk 0:02:32.6]} 15.
Rac1 {[%clk 0:02:22]} 15... Rd6 {[%clk 0:02:31.3]} 16. Nd4 {[%clk 0:02:21.2]}
16... e5 {[%clk 0:02:28.2]} 17. Nxc6 {[%clk 0:02:20.3]} 17... f5 {[%clk
0:02:20.1]} 18. Nxe5 {[%clk 0:02:18.9]} 18... Rfd8 {[%clk 0:02:17.3]} 19. Rxc7
{[%clk 0:02:12.3]} 19... Rd1 {[%clk 0:02:16]} 20. Nxf7 {[%clk 0:02:07.8]} 20...
Rxf1+ {[%clk 0:02:14.7]} 21. Kxf1 {[%clk 0:02:06.7]} 21... Rd1+ {[%clk
0:02:08.5]} 22. Ke2 {[%clk 0:02:06]} 22... Rb1 {[%clk 0:02:07.3]} 23. Rb7 {[%clk
0:01:58.7]} 23... Rh1 {[%clk 0:02:05.6]} 24. h3 {[%clk 0:01:57.6]} 24... Rg1
{[%clk 0:02:04.4]} 25. Kf3 {[%clk 0:01:56.2]} 25... Ra1 {[%clk 0:02:01.4]} 26.
Nh6+ {[%clk 0:01:55.3]} 26... Kf8 {[%clk 0:01:59.3]} 27. Kf4 {[%clk 0:01:55.1]}
27... Rxa2 {[%clk 0:01:58.1]} 28. Kxf5 {[%clk 0:01:55]} 28... Ra5+ {[%clk
0:01:56]} 29. Kf6 {[%clk 0:01:54.3]} 29... Ra6+ {[%clk 0:01:55.6]} 30. Kg5
{[%clk 0:01:54.2]} 30... Ra5+ {[%clk 0:01:53]} 31. Kg4 {[%clk 0:01:49.6]} 31...
Ra6 {[%clk 0:01:50.1]} 32. b4 {[%clk 0:01:46.8]} 32... Rxh6 {[%clk 0:01:47.8]}
33. Rxa7 {[%clk 0:01:42.3]} 33... Rg6+ {[%clk 0:01:46]} 34. Kf3 {[%clk
0:01:40.5]} 34... Rb6 {[%clk 0:01:44.4]} 35. Ra8+ {[%clk 0:01:39]} 35... Ke7
{[%clk 0:01:42.8]} 36. Ra7+ {[%clk 0:01:38.5]} 36... Kd6 {[%clk 0:01:42.6]} 37.
Rxh7 {[%clk 0:01:36.4]} 37... Rxb4 {[%clk 0:01:42]} 38. g4 {[%clk 0:01:35.7]}
38... Rb8 {[%clk 0:01:40.6]} 39. g5 {[%clk 0:01:35]} 39... Rf8+ {[%clk
0:01:39.6]} 40. Kg3 {[%clk 0:01:33.7]} 40... Rg8 {[%clk 0:01:39.4]} 41. Rh6+
{[%clk 0:01:33]} 41... Ke5 {[%clk 0:01:38.5]} 42. g6 {[%clk 0:01:32.4]} 42...
Ke4 {[%clk 0:01:34.1]} 43. Kg4 {[%clk 0:01:29.9]} 43... Kd3 {[%clk 0:01:32.4]}
44. f4 {[%clk 0:01:26.3]} 44... Kxe3 {[%clk 0:01:30.2]} 45. f5 {[%clk 0:01:26]}
45... Ra8 {[%clk 0:01:25.4]} 46. g7 {[%clk 0:01:24.9]} 46... Rg8 {[%clk
0:01:24.2]} 47. f6 {[%clk 0:01:22.8]} 47... Ra8 {[%clk 0:01:18.8]} 48. Rh8
{[%clk 0:01:21]} 48... Ra4+ {[%clk 0:01:17.2]} 49. Kg5 {[%clk 0:01:20.4]} 49...
Ra5+ {[%clk 0:01:16.4]} 50. Kg6 {[%clk 0:01:20.4]} 50... Ra1 {[%clk 0:01:15.2]}
51. f7 {[%clk 0:01:15.7]} 51... Rg1+ {[%clk 0:01:15.1]} 52. Kh7 {[%clk
0:01:15.4]} 52... Rh1 {[%clk 0:01:13.4]} 53. Kg8 {[%clk 0:01:15.1]} 53... Ra1
{[%clk 0:01:10.5]} 54. Kh7 {[%clk 0:01:14.6]} 54... Rh1 {[%clk 0:01:08.4]} 55.
Kg6 {[%clk 0:01:12.3]} 55... Rg1+ {[%clk 0:01:07.3]} 56. Kf6 {[%clk 0:01:10.8]}
56... Rf1+ {[%clk 0:01:03]} 57. Ke7 {[%clk 0:01:05.5]} 57... Re1 {[%clk
0:01:01.9]} 58. f8=Q {[%clk 0:00:58.3]} 58... Kd2+ {[%clk 0:01:00.9]} 59. Kd6
{[%clk 0:00:56.8]} 59... Ra1 {[%clk 0:00:57.8]} 60. g8=Q {[%clk 0:00:54.8]}
60... Ra6+ {[%clk 0:00:54.2]} 61. Kd5 {[%clk 0:00:52.9]} 61... Ra5+ {[%clk
0:00:51.9]} 62. Ke4 {[%clk 0:00:51.6]} 62... Ra4+ {[%clk 0:00:49.3]} 63. Kf3
{[%clk 0:00:51.1]} 63... Ra1 {[%clk 0:00:45.2]} 64. Qd6+ {[%clk 0:00:47.5]}
64... Ke1 {[%clk 0:00:42.9]} 65. Qg1# {[%clk 0:00:43.2]} 1-0

[Event "Betsys MČR v online bleskovém šachu 2021"]
[Site "Chess.com"]
[Date "2021.04.17"]
[Round "7"]
[White "mravecuk"]
[Black "YawningBagel"]
[Result "1/2-1/2"]
[WhiteElo "2250"]
[BlackElo "1972"]
[TimeControl "180+1"]
[EndTime "10:12:03 PDT"]
[Termination "Remíza opakováním pozice"]

1. d4 {[%clk 0:03:00.9]} 1... Nf6 {[%clk 0:02:59.7]} 2. Nc3 {[%clk 0:03:00.5]}
2... c5 {[%clk 0:02:59.8]} 3. d5 {[%clk 0:02:59.7]} 3... g6 {[%clk 0:02:58.8]}
4. e4 {[%clk 0:02:59.2]} 4... d6 {[%clk 0:02:59.2]} 5. Nf3 {[%clk 0:02:58.1]}
5... Bg7 {[%clk 0:02:59.5]} 6. Bb5+ {[%clk 0:02:58]} 6... Bd7 {[%clk 0:02:59.1]}
7. a4 {[%clk 0:02:58.2]} 7... O-O {[%clk 0:02:58.8]} 8. O-O {[%clk 0:02:53.5]}
8... a6 {[%clk 0:02:58.6]} 9. Be2 {[%clk 0:02:52.8]} 9... Bg4 {[%clk 0:02:54.1]}
10. Nd2 {[%clk 0:02:52.5]} 10... Bxe2 {[%clk 0:02:54.2]} 11. Qxe2 {[%clk
0:02:53.3]} 11... Nbd7 {[%clk 0:02:53]} 12. Nc4 {[%clk 0:02:52.5]} 12... b6
{[%clk 0:02:37.1]} 13. h3 {[%clk 0:02:47.6]} 13... Qc7 {[%clk 0:02:33.9]} 14.
Bf4 {[%clk 0:02:45]} 14... Rab8 {[%clk 0:02:16.7]} 15. Rfe1 {[%clk 0:02:40.4]}
15... b5 {[%clk 0:02:16.5]} 16. axb5 {[%clk 0:02:39.4]} 16... axb5 {[%clk
0:02:17.4]} 17. Na5 {[%clk 0:02:39.4]} 17... b4 {[%clk 0:02:06.5]} 18. Nb5
{[%clk 0:02:23.3]} 18... Qb6 {[%clk 0:02:05.1]} 19. c4 {[%clk 0:02:19.3]} 19...
bxc3 {[%clk 0:02:04.9]} 20. Nxc3 {[%clk 0:02:19.3]} 20... Qxb2 {[%clk
0:02:04.7]} 21. Qxb2 {[%clk 0:02:17.4]} 21... Rxb2 {[%clk 0:02:05.6]} 22. Nc6
{[%clk 0:02:15.6]} 22... Re8 {[%clk 0:01:55.9]} 23. Ra7 {[%clk 0:02:13.1]} 23...
Kf8 {[%clk 0:01:54.7]} 24. Nd1 {[%clk 0:01:46.7]} 24... Rb3 {[%clk 0:01:47.2]}
25. f3 {[%clk 0:01:38.5]} 25... Nb6 {[%clk 0:01:43.5]} 26. Ne3 {[%clk
0:01:32.1]} 26... Nfd7 {[%clk 0:01:40.9]} 27. Nc4 {[%clk 0:01:19.1]} 27... Nxc4
{[%clk 0:01:38.4]} 28. Rxd7 {[%clk 0:01:19.2]} 28... Ne5 {[%clk 0:01:03]} 29.
Bxe5 {[%clk 0:01:08.4]} 29... Bxe5 {[%clk 0:01:03.1]} 30. Nxe5 {[%clk
0:01:07.5]} 30... dxe5 {[%clk 0:01:03.6]} 31. Rc7 {[%clk 0:01:07.6]} 31... Rc3
{[%clk 0:01:03.7]} 32. Ra1 {[%clk 0:01:06.1]} 32... Rb8 {[%clk 0:01:01.5]} 33.
Raa7 {[%clk 0:01:01.8]} 33... Rb2 {[%clk 0:00:27.6]} 34. Rxe7 {[%clk 0:01:00.1]}
34... Rcc2 {[%clk 0:00:27.8]} 35. Rxf7+ {[%clk 0:00:59.9]} 35... Kg8 {[%clk
0:00:27.2]} 36. Rg7+ {[%clk 0:00:40]} 36... Kf8 {[%clk 0:00:26.8]} 37. Raf7+
{[%clk 0:00:22.2]} 37... Ke8 {[%clk 0:00:26.1]} 38. Rb7 {[%clk 0:00:22.3]} 38...
Rxg2+ {[%clk 0:00:23.1]} 39. Kf1 {[%clk 0:00:22.4]} 39... Rgf2+ {[%clk
0:00:20.3]} 40. Ke1 {[%clk 0:00:22.5]} 40... Rfe2+ {[%clk 0:00:08.2]} 41. Kd1
{[%clk 0:00:22.5]} 41... Red2+ {[%clk 0:00:08.2]} 42. Kc1 {[%clk 0:00:20.9]}
42... Rdc2+ {[%clk 0:00:08.5]} 43. Kd1 {[%clk 0:00:21.2]} 43... Rd2+ {[%clk
0:00:08.8]} 44. Ke1 {[%clk 0:00:21.6]} 44... Re2+ {[%clk 0:00:09]} 45. Kd1
{[%clk 0:00:22.5]} 45... Red2+ {[%clk 0:00:09.4]} 1/2-1/2

[Event "Betsys MČR v online bleskovém šachu 2021"]
[Site "Chess.com"]
[Date "2021.04.17"]
[Round "7"]
[White "Sunnika"]
[Black "Akdub"]
[Result "0-1"]
[WhiteElo "2284"]
[BlackElo "2106"]
[TimeControl "180+1"]
[EndTime "10:12:04 PDT"]
[Termination "Uživatel Akdub zvítězil matem"]

1. d4 {[%clk 0:03:00.6]} 1... e6 {[%clk 0:02:53.8]} 2. Nf3 {[%clk 0:03:01]} 2...
Nf6 {[%clk 0:02:53.3]} 3. Bf4 {[%clk 0:03:01.5]} 3... Be7 {[%clk 0:02:53.5]} 4.
e3 {[%clk 0:03:02]} 4... O-O {[%clk 0:02:53.9]} 5. h3 {[%clk 0:03:02.5]} 5... b6
{[%clk 0:02:53.4]} 6. Bd3 {[%clk 0:03:00.5]} 6... Bb7 {[%clk 0:02:53.3]} 7. O-O
{[%clk 0:03:01.4]} 7... c5 {[%clk 0:02:52.7]} 8. a4 {[%clk 0:02:57.8]} 8... Nc6
{[%clk 0:02:48.2]} 9. Nbd2 {[%clk 0:02:47.1]} 9... Re8 {[%clk 0:02:41.8]} 10. c3
{[%clk 0:02:46]} 10... d6 {[%clk 0:02:40.9]} 11. Re1 {[%clk 0:02:31.1]} 11... h6
{[%clk 0:02:37.4]} 12. e4 {[%clk 0:02:28.1]} 12... cxd4 {[%clk 0:02:36.3]} 13.
cxd4 {[%clk 0:02:29]} 13... Nb4 {[%clk 0:02:30.4]} 14. Bb5 {[%clk 0:02:24.4]}
14... Bc6 {[%clk 0:02:21.9]} 15. Qb3 {[%clk 0:02:23]} 15... a5 {[%clk 0:02:11]}
16. Bxc6 {[%clk 0:02:15.3]} 16... Nxc6 {[%clk 0:02:09]} 17. Rac1 {[%clk
0:02:04.1]} 17... Nb4 {[%clk 0:02:08]} 18. Be3 {[%clk 0:01:34.9]} 18... Rc8
{[%clk 0:01:50.9]} 19. Nb1 {[%clk 0:01:31.6]} 19... Qd7 {[%clk 0:01:43.9]} 20.
Nc3 {[%clk 0:01:28.3]} 20... Nd3 {[%clk 0:01:39.7]} 21. e5 {[%clk 0:01:15.3]}
21... Nxc1 {[%clk 0:01:33.4]} 22. Bxc1 {[%clk 0:00:57.8]} 22... dxe5 {[%clk
0:01:26.3]} 23. Rxe5 {[%clk 0:00:57.4]} 23... Nd5 {[%clk 0:01:16.7]} 24. Bd2
{[%clk 0:00:54]} 24... Bd6 {[%clk 0:00:58.2]} 25. Re1 {[%clk 0:00:48.4]} 25...
Nxc3 {[%clk 0:00:55.3]} 26. bxc3 {[%clk 0:00:47.6]} 26... Qc6 {[%clk 0:00:50.6]}
27. Rb1 {[%clk 0:00:41.8]} 27... Qc4 {[%clk 0:00:41.8]} 28. Qd1 {[%clk
0:00:40.2]} 28... Rb8 {[%clk 0:00:37.3]} 29. Rb5 {[%clk 0:00:39.6]} 29... Qd3
{[%clk 0:00:30.9]} 30. Ne1 {[%clk 0:00:36.1]} 30... Qe4 {[%clk 0:00:28.4]} 31.
Be3 {[%clk 0:00:31.8]} 31... Rec8 {[%clk 0:00:27.1]} 32. Qd2 {[%clk 0:00:31.4]}
32... Qc6 {[%clk 0:00:23.1]} 33. c4 {[%clk 0:00:18.3]} 33... Qxc4 {[%clk
0:00:20.7]} 34. Bxh6 {[%clk 0:00:18.7]} 34... Bf8 {[%clk 0:00:18]} 35. Be3
{[%clk 0:00:15.6]} 35... Qxa4 {[%clk 0:00:17.4]} 36. Rh5 {[%clk 0:00:14.2]}
36... Qa1 {[%clk 0:00:15.6]} 37. Kh2 {[%clk 0:00:11.6]} 37... g6 {[%clk
0:00:15.4]} 38. Rh4 {[%clk 0:00:10.7]} 38... Bd6+ {[%clk 0:00:14.9]} 39. g3
{[%clk 0:00:09.4]} 39... Rc1 {[%clk 0:00:14.4]} 40. Nf3 {[%clk 0:00:07.8]} 40...
Rh1+ {[%clk 0:00:13.7]} 41. Kg2 {[%clk 0:00:08]} 41... Qf1# {[%clk 0:00:13.4]}
0-1

[Event "Betsys MČR v online bleskovém šachu 2021"]
[Site "Chess.com"]
[Date "2021.04.17"]
[Round "7"]
[White "Loveforever_Pepi"]
[Black "tomasPardubice"]
[Result "1/2-1/2"]
[WhiteElo "2282"]
[BlackElo "2091"]
[TimeControl "180+1"]
[EndTime "10:12:04 PDT"]
[Termination "Remíza opakováním pozice"]

1. e4 {[%clk 0:03:00.9]} 1... c5 {[%clk 0:02:54.4]} 2. d4 {[%clk 0:03:00.2]}
2... cxd4 {[%clk 0:02:53.3]} 3. c3 {[%clk 0:03:00.7]} 3... Nf6 {[%clk
0:02:52.3]} 4. e5 {[%clk 0:03:00.2]} 4... Nd5 {[%clk 0:02:52.2]} 5. cxd4 {[%clk
0:03:00.3]} 5... d6 {[%clk 0:02:51.5]} 6. Bc4 {[%clk 0:02:58.8]} 6... Nb6 {[%clk
0:02:49.7]} 7. Bb3 {[%clk 0:02:56.1]} 7... dxe5 {[%clk 0:02:47.1]} 8. Qh5 {[%clk
0:02:52]} 8... e6 {[%clk 0:02:40.2]} 9. dxe5 {[%clk 0:02:51.5]} 9... Be7 {[%clk
0:02:40]} 10. Nf3 {[%clk 0:02:48.6]} 10... O-O {[%clk 0:02:38.6]} 11. O-O {[%clk
0:02:44.5]} 11... Nc6 {[%clk 0:02:38.2]} 12. Rd1 {[%clk 0:02:21.9]} 12... Bd7
{[%clk 0:02:33.4]} 13. Nc3 {[%clk 0:02:18.2]} 13... g6 {[%clk 0:02:25.3]} 14.
Qh6 {[%clk 0:02:14.6]} 14... Na5 {[%clk 0:02:18.9]} 15. Bg5 {[%clk 0:02:09.9]}
15... Nxb3 {[%clk 0:02:15.1]} 16. axb3 {[%clk 0:02:10.4]} 16... f5 {[%clk
0:02:09.6]} 17. exf6 {[%clk 0:01:53.7]} 17... Bxf6 {[%clk 0:02:09.5]} 18. Ne4
{[%clk 0:01:38.1]} 18... Bxg5 {[%clk 0:01:53.1]} 19. Nexg5 {[%clk 0:01:20.2]}
19... Qe7 {[%clk 0:01:50.1]} 20. Ne5 {[%clk 0:01:06.3]} 20... Be8 {[%clk
0:01:27.6]} 21. h4 {[%clk 0:00:42]} 21... Rf5 {[%clk 0:01:26.3]} 22. Ng4 {[%clk
0:00:33.9]} 22... Nd5 {[%clk 0:01:06.1]} 23. Re1 {[%clk 0:00:25.7]} 23... Bd7
{[%clk 0:01:05.5]} 24. Re5 {[%clk 0:00:20.4]} 24... Raf8 {[%clk 0:01:00.4]} 25.
Rae1 {[%clk 0:00:20.1]} 25... Rxe5 {[%clk 0:00:45.4]} 26. Nxe5 {[%clk
0:00:18.6]} 26... Nf6 {[%clk 0:00:28.2]} 27. Nxd7 {[%clk 0:00:12.3]} 27... Qxd7
{[%clk 0:00:19.6]} 28. Nxe6 {[%clk 0:00:12]} 28... Re8 {[%clk 0:00:18]} 29. Qe3
{[%clk 0:00:11.7]} 29... Ng4 {[%clk 0:00:16.6]} 30. Qe4 {[%clk 0:00:10.3]} 30...
Nf6 {[%clk 0:00:15.9]} 31. Qe5 {[%clk 0:00:04.9]} 31... Ng4 {[%clk 0:00:12.4]}
32. Qe4 {[%clk 0:00:04.8]} 32... Nf6 {[%clk 0:00:12.4]} 33. Qe2 {[%clk
0:00:04.7]} 33... Re7 {[%clk 0:00:11.5]} 34. Qe5 {[%clk 0:00:04]} 34... Ng4
{[%clk 0:00:11]} 35. Qe4 {[%clk 0:00:04]} 35... Nf6 {[%clk 0:00:10.8]} 36. Qe5
{[%clk 0:00:03.9]} 36... Ng4 {[%clk 0:00:10.9]} 37. Qe4 {[%clk 0:00:02.8]} 37...
Nf6 {[%clk 0:00:10.9]} 38. Qe5 {[%clk 0:00:02.9]} 1/2-1/2

[Event "Betsys MČR v online bleskovém šachu 2021"]
[Site "Chess.com"]
[Date "2021.04.17"]
[Round "7"]
[White "Krejcak"]
[Black "TrickyPeat"]
[Result "1-0"]
[WhiteElo "2017"]
[BlackElo "2192"]
[TimeControl "180+1"]
[EndTime "10:12:04 PDT"]
[Termination "Uživatel Krejcak zvítězil na čas"]

1. e4 {[%clk 0:03:00.9]} 1... d5 {[%clk 0:02:58.2]} 2. exd5 {[%clk 0:03:00.4]}
2... Qxd5 {[%clk 0:02:58.1]} 3. Nc3 {[%clk 0:03:01]} 3... Qd6 {[%clk 0:02:58.2]}
4. Bc4 {[%clk 0:02:56.6]} 4... Nf6 {[%clk 0:02:56.9]} 5. d3 {[%clk 0:02:56.1]}
5... Nc6 {[%clk 0:02:54.8]} 6. Nge2 {[%clk 0:02:55.6]} 6... e5 {[%clk 0:02:53]}
7. O-O {[%clk 0:02:53.1]} 7... Bg4 {[%clk 0:02:52.4]} 8. f3 {[%clk 0:02:52.5]}
8... Be6 {[%clk 0:02:49.7]} 9. Ne4 {[%clk 0:02:49.4]} 9... Nxe4 {[%clk
0:02:46.3]} 10. fxe4 {[%clk 0:02:49.1]} 10... Bxc4 {[%clk 0:02:45.8]} 11. dxc4
{[%clk 0:02:49.1]} 11... Qc5+ {[%clk 0:02:38.7]} 12. Kh1 {[%clk 0:02:47.2]}
12... Qxc4 {[%clk 0:02:37.4]} 13. Ng3 {[%clk 0:02:45.9]} 13... g6 {[%clk
0:02:27]} 14. b3 {[%clk 0:02:44.8]} 14... Qe6 {[%clk 0:02:24.2]} 15. Be3 {[%clk
0:02:34.8]} 15... Bg7 {[%clk 0:02:21.3]} 16. c3 {[%clk 0:02:28.8]} 16... O-O
{[%clk 0:02:20.3]} 17. Qe2 {[%clk 0:02:24.6]} 17... a6 {[%clk 0:02:13.2]} 18.
Rf2 {[%clk 0:02:23.5]} 18... Rad8 {[%clk 0:02:10.4]} 19. Raf1 {[%clk 0:02:23.6]}
19... h5 {[%clk 0:02:01.5]} 20. Qc2 {[%clk 0:01:41.4]} 20... h4 {[%clk
0:01:57.3]} 21. Ne2 {[%clk 0:01:40.6]} 21... h3 {[%clk 0:01:54.8]} 22. Bg5
{[%clk 0:01:37.3]} 22... hxg2+ {[%clk 0:01:43.7]} 23. Rxg2 {[%clk 0:01:34.6]}
23... Rd7 {[%clk 0:01:41.9]} 24. Ng3 {[%clk 0:01:32.3]} 24... Qd6 {[%clk
0:01:26.2]} 25. Qf2 {[%clk 0:01:27.9]} 25... Qd3 {[%clk 0:01:13.7]} 26. Nh5
{[%clk 0:01:26.9]} 26... Qxe4 {[%clk 0:01:02]} 27. Nxg7 {[%clk 0:01:25]} 27...
Kxg7 {[%clk 0:01:00.9]} 28. Qf6+ {[%clk 0:01:22.4]} 28... Kh7 {[%clk 0:00:55]}
29. Kg1 {[%clk 0:01:08.3]} 29... Ne7 {[%clk 0:00:49.1]} 30. Rg3 {[%clk 0:01:03]}
30... Rd3 {[%clk 0:00:29.2]} 31. Rxd3 {[%clk 0:00:54]} 31... Qxd3 {[%clk
0:00:26.6]} 32. Qxe7 {[%clk 0:00:53.8]} 32... Kg8 {[%clk 0:00:15]} 33. Qf6
{[%clk 0:00:43.3]} 33... Qd6 {[%clk 0:00:11.9]} 34. Qxd6 {[%clk 0:00:36.5]}
34... cxd6 {[%clk 0:00:11.3]} 35. Be7 {[%clk 0:00:36.9]} 35... Rc8 {[%clk
0:00:09.7]} 36. c4 {[%clk 0:00:36.2]} 36... Rc6 {[%clk 0:00:06.7]} 37. Rd1
{[%clk 0:00:35.2]} 37... b5 {[%clk 0:00:05.6]} 38. Rxd6 {[%clk 0:00:31.7]} 38...
Rc7 {[%clk 0:00:05]} 39. Rd8+ {[%clk 0:00:26.1]} 39... Kg7 {[%clk 0:00:03.7]}
40. Bf8+ {[%clk 0:00:25.7]} 40... Kf6 {[%clk 0:00:02.2]} 41. c5 {[%clk
0:00:24.7]} 1-0

[Event "Betsys MČR v online bleskovém šachu 2021"]
[Site "Chess.com"]
[Date "2021.04.17"]
[Round "7"]
[White "misa2009"]
[Black "trosecnik"]
[Result "0-1"]
[WhiteElo "1518"]
[BlackElo "1840"]
[TimeControl "180+1"]
[EndTime "10:12:04 PDT"]
[Termination "Uživatel trosecnik zvítězil matem"]

1. e4 {[%clk 0:03:00.9]} 1... c5 {[%clk 0:02:59.1]} 2. Nf3 {[%clk 0:02:59.3]}
2... Nc6 {[%clk 0:02:57.6]} 3. Nc3 {[%clk 0:02:58.7]} 3... e6 {[%clk 0:02:52.3]}
4. d3 {[%clk 0:02:56.8]} 4... Nge7 {[%clk 0:02:50.8]} 5. Be2 {[%clk 0:02:56.1]}
5... d5 {[%clk 0:02:50.8]} 6. exd5 {[%clk 0:02:55.3]} 6... Nxd5 {[%clk
0:02:51.7]} 7. Bd2 {[%clk 0:02:52.6]} 7... Be7 {[%clk 0:02:50.6]} 8. O-O {[%clk
0:02:51.9]} 8... O-O {[%clk 0:02:50.2]} 9. a3 {[%clk 0:02:46.2]} 9... b6 {[%clk
0:02:33.5]} 10. Nxd5 {[%clk 0:02:35.9]} 10... exd5 {[%clk 0:02:31.1]} 11. Bf4
{[%clk 0:02:32.4]} 11... Bd6 {[%clk 0:02:22.8]} 12. Bg3 {[%clk 0:02:29.9]} 12...
Re8 {[%clk 0:02:15.6]} 13. Re1 {[%clk 0:02:26.4]} 13... Bxg3 {[%clk 0:01:52.8]}
14. fxg3 {[%clk 0:02:25.5]} 14... Bb7 {[%clk 0:01:52.7]} 15. Qd2 {[%clk
0:02:21.8]} 15... Qf6 {[%clk 0:01:48.6]} 16. c3 {[%clk 0:02:12.3]} 16... Re7
{[%clk 0:01:46.5]} 17. Bf1 {[%clk 0:02:11.3]} 17... Rae8 {[%clk 0:01:43.6]} 18.
Rxe7 {[%clk 0:02:10.6]} 18... Rxe7 {[%clk 0:01:35.5]} 19. Re1 {[%clk 0:02:09.9]}
19... d4 {[%clk 0:01:29.4]} 20. c4 {[%clk 0:02:06.7]} 20... g6 {[%clk
0:01:26.4]} 21. h3 {[%clk 0:02:01.1]} 21... Ne5 {[%clk 0:01:15.2]} 22. Nxe5
{[%clk 0:01:49.8]} 22... Rxe5 {[%clk 0:01:16.1]} 23. Rxe5 {[%clk 0:01:42.7]}
23... Qxe5 {[%clk 0:01:17]} 24. Qe2 {[%clk 0:01:38.8]} 24... Qxg3 {[%clk
0:01:01.8]} 25. Qe8+ {[%clk 0:01:26.3]} 25... Kg7 {[%clk 0:01:00.9]} 26. Qd7
{[%clk 0:01:22]} 26... Qe3+ {[%clk 0:00:31.9]} 27. Kh1 {[%clk 0:01:16.8]} 27...
Qf2 {[%clk 0:00:31]} 28. Qxb7 {[%clk 0:01:10.7]} 28... Qxf1+ {[%clk 0:00:31.2]}
29. Kh2 {[%clk 0:01:10.9]} 29... Qf4+ {[%clk 0:00:31.7]} 30. Kg1 {[%clk
0:01:09.2]} 30... Qe3+ {[%clk 0:00:31.3]} 31. Kf1 {[%clk 0:01:05.8]} 31... Qxd3+
{[%clk 0:00:31.3]} 32. Kf2 {[%clk 0:01:06]} 32... Qxc4 {[%clk 0:00:27]} 33. Qxa7
{[%clk 0:01:03.2]} 33... Qc2+ {[%clk 0:00:27.4]} 34. Kg3 {[%clk 0:01:02.2]}
34... d3 {[%clk 0:00:27.6]} 35. Qe7 {[%clk 0:00:52.4]} 35... Qxb2 {[%clk
0:00:26.5]} 36. Qe3 {[%clk 0:00:36.5]} 36... d2 {[%clk 0:00:24.4]} 37. Qe2
{[%clk 0:00:34.8]} 37... Qxa3+ {[%clk 0:00:20.6]} 38. Kf2 {[%clk 0:00:31.7]}
38... Qc3 {[%clk 0:00:19.2]} 39. g3 {[%clk 0:00:24.6]} 39... Qd4+ {[%clk
0:00:19.4]} 40. Kg2 {[%clk 0:00:18.5]} 40... d1=Q {[%clk 0:00:19.7]} 41. Qg4
{[%clk 0:00:13.8]} 41... Q1d2+ {[%clk 0:00:18.4]} 42. Kf3 {[%clk 0:00:11.7]}
42... Q4e3# {[%clk 0:00:18.1]} 0-1